bitfinex-derivatives/quotes_SOLF0:USTF0_20250527
["timestamp","ask_amount","ask_price","bid_price","bid_amount"]
[1748353188725,5.602,178.41,178.39,0.04168592]
[1748353188926,0.04140855,178.42,178.39,0.04168592]
[1748353189632,0.04140855,178.42,178.41,5.6017]
[1748353190026,0.04140855,178.42,178.39,0.04168592]
[1748353191236,0.04140855,178.42,178.41,5.6017]
[1748353193324,0.04140855,178.42,178.39,1.94288592]
[1748353193926,0.04140855,178.42,178.41,5.6017]
[1748353195626,484.28,178.5,178.44,5.6005]
[1748353196635,5.6001,178.47,178.45,0.03874988]
[1748353196831,0.04106205,178.49,178.45,0.03874988]
[1748353197333,5.5996,178.48,178.45,0.03874988]
[1748353197528,0.04106205,178.49,178.45,0.03874988]
[1748353197933,5.6001,178.47,178.45,0.03874988]
[1748353198436,5.5997,178.48,178.45,0.03874988]
[1748353199234,0.04106205,178.49,178.45,0.03874988]
[1748353199936,5.64036205,178.49,178.46,5.6001]
[1748353200136,0.04106205,178.49,178.45,0.03874988]
[1748353200432,5.6002,178.46,178.45,0.03874988]
[1748353200944,0.04106205,178.49,178.45,0.03874988]
[1748353201331,5.5975,178.55,178.52,5.598]
[1748353201535,35.44,178.57,178.45,120.42]
[1748353202235,0.03744987,178.53,178.49,0.03740513]
[1748353203531,0.03744987,178.53,178.51,5.5985]
[1748353204036,0.03744987,178.53,178.52,5.5983]
[1748353204437,0.03744987,178.53,178.49,3.85550513]
[1748353204940,0.03744987,178.53,178.52,5.5983]
[1748353205532,0.03744987,178.53,178.49,3.85550513]
[1748353206837,35.26,178.61,178.49,3.85550513]
[1748353207141,35.26,178.61,178.49,3.8181]
[1748353207440,5.5967,178.58,178.49,3.8181]
[1748353207641,35.26,178.61,178.49,3.8181]
[1748353207943,0.03941612,178.57,178.55,5.5972]
[1748353208338,0.03941612,178.57,178.53,0.04082992]
[1748353208533,23.38149644,178.67,178.53,0.04082992]
[1748353208534,35.24,178.63,178.53,0.04082992]
[1748353208730,35.24,178.63,178.53,35.24]
[1748353208941,35.24,178.63,178.54,1.853]
[1748353209143,5.5955,178.61,178.58,5.5962]
[1748353209640,5.63132735,178.61,178.58,5.6316744]
[1748353209943,0.03582735,178.61,178.58,0.0354744]
[1748353210435,0.03582735,178.61,178.6,5.5958]
[1748353210639,35.24,178.67,178.58,0.0354744]
[1748353211039,35.24,178.67,178.58,35.2754744]
[1748353211234,35.24,178.67,178.58,0.0354744]
[1748353211539,5.595,178.63,178.59,5.5959]
[1748353211847,0.03569298,178.65,178.58,0.0354744]
[1748353213038,5.6005,178.45,178.3,9.6699747]
[1748353213236,35.24,178.47,178.33,3.8397]
[1748353213536,5.6014,178.43,178.33,3.8397]
[1748353213740,35.24,178.47,178.34,37.1867]
[1748353213938,0.03673116,178.42,178.39,0.03644724]
[1748353214141,0.04153992,178.42,178.39,5.64504681]
[1748353214330,0.04153992,178.42,178.39,0.04274681]
[1748353214736,0.04153992,178.42,178.39,5.64504681]
[1748353215540,5.64293992,178.42,178.39,0.04274681]
[1748353215844,0.04153992,178.42,178.39,0.04274681]
[1748353216039,5.602,178.41,178.39,0.04274681]
[1748353216239,0.04153992,178.42,178.39,0.04274681]
[1748353216838,0.04153992,178.42,178.39,5.64504681]
[1748353217047,0.04153992,178.42,178.39,0.04274681]
[1748353218244,0.04153992,178.42,178.4,5.602]
[1748353218442,0.04153992,178.42,178.39,0.04274681]
[1748353218633,35.24,178.49,178.39,0.04274681]
[1748353218839,483.76,178.55,178.39,35.28274681]
[1748353219039,519.0,178.55,178.4,14.17859644]
[1748353219238,0.196,178.61,178.4,14.17859644]
[1748353219446,35.24,178.6,178.44,12.19399644]
[1748353219744,0.04075741,178.54,178.5,0.04123815]
[1748353219945,0.04075741,178.54,178.52,5.5982]
[1748353220946,0.04075741,178.54,178.5,0.04123815]
[1748353221546,40.8361,178.6,178.5,35.28123815]
[1748353221749,40.8361,178.6,178.51,1.9346]
[1748353222137,5.5961,178.6,178.51,63.9346]
[1748353222449,5.5962,178.59,178.51,63.9346]
[1748353222647,1.8589,178.64,178.53,0.03810169]
[1748353222944,35.24,178.63,178.57,0.04038698]
[1748353223346,5.5954,178.62,178.57,0.04038698]
[1748353223556,35.24,178.63,178.59,5.5961]
[1748353223848,35.24,178.63,178.57,0.04038698]
[1748353224046,5.5954,178.62,178.58,5.5962]
[1748353224347,5.5954,178.62,178.57,0.04038698]
[1748353224348,35.24,178.63,178.57,0.04038698]
[1748353224746,40.8349,178.63,178.59,5.5959]
[1748353224947,483.84,178.65,178.57,0.04038698]
[1748353225344,5.5949,178.63,178.57,0.04038698]
[1748353226153,5.5949,178.63,178.6,5.5958]
[1748353226458,12.19399644,178.79,178.6,35.24]
[1748353226763,5.5929,178.7,178.68,0.03962849]
[1748353226941,5.5929,178.7,178.67,0.03848693]
[1748353227147,35.24,178.73,178.67,0.03848693]
[1748353227647,5.5933,178.68,178.67,0.03848693]
[1748353228347,35.24,178.73,178.67,0.03848693]
[1748353229951,5.5933,178.68,178.67,0.03848693]
[1748353231548,1.9419,178.72,178.67,0.03848693]
[1748353232253,5.5925,178.71,178.67,0.03848693]
[1748353233052,5.5921,178.72,178.67,0.03848693]
[1748353233245,35.24,178.73,178.67,0.03848693]
[1748353233647,35.24,178.73,178.7,5.5925]
[1748353233850,35.04,178.77,178.7,5.5925]
[1748353234054,35.04,178.77,178.72,0.0401733]
[1748353234453,35.04,178.81,178.72,0.0401733]
[1748353234648,35.04,178.8,178.75,0.04156843]
[1748353235154,5.5908,178.76,178.75,0.04156843]
[1748353236144,35.04,178.8,178.75,0.04156843]
[1748353236558,5.5904,178.78,178.75,0.04156843]
[1748353236750,35.04,178.8,178.75,0.04156843]
[1748353237855,12.15513311,178.77,178.63,0.62896429]
[1748353238046,36.9885,178.76,178.63,0.62896429]
[1748353238253,5.5927,178.7,178.65,5.5941]
[1748353238655,38.9491,178.76,178.62,1.9307]
[1748353238857,0.04005174,178.71,178.67,0.03610448]
[1748353239456,5.5933,178.68,178.67,0.03610448]
[1748353239761,35.02,178.7,178.6,1.26485]
[1748353239955,5.5955,178.61,178.6,1.26485]
[1748353240159,35.02,178.7,178.58,0.62880912]
[1748353240356,5.5957,178.61,178.58,0.62880912]
[1748353240551,0.03739996,178.61,178.58,0.66676683]
[1748353240963,5.5961,178.59,178.58,0.66676683]
[1748353241856,5.597,178.56,178.55,0.8419725]
[1748353242562,47.17513311,178.6,178.46,1.26485]
[1748353242759,0.04256971,178.55,178.51,0.04025484]
[1748353242958,35.02,178.54,178.46,1.26485]
[1748353243660,12.15513311,178.52,178.46,1.26485]
[1748353243859,0.03575152,178.51,178.47,0.03734247]
[1748353244059,12.15513311,178.52,178.38,44.5632]
[1748353244060,19.80580706,178.52,178.38,38.9606]
[1748353244262,19.80580706,178.52,178.39,5.6021]
[1748353244662,5.5998,178.48,178.39,5.6021]
[1748353244859,35.04,178.47,178.4,5.602]
[1748353245059,35.04,178.47,178.38,38.9606]
[1748353245060,0.04131971,178.45,178.42,0.03986089]
[1748353246273,0.04131971,178.45,178.43,5.6009]
[1748353246767,0.04131971,178.45,178.42,0.03986089]
[1748353247657,0.04131971,178.45,178.44,5.6008]
[1748353247859,0.04131971,178.45,178.42,0.03986089]
[1748353248764,0.04131971,178.45,178.44,5.6008]
[1748353249565,35.04,178.51,178.42,0.03986089]
[1748353250365,35.04,178.51,178.5,5.5989]
[1748353250568,0.03891325,178.52,178.49,0.04149827]
[1748353250862,0.03869147,178.52,178.51,5.5986]
[1748353251566,0.03869147,178.52,178.5,5.5988]
[1748353251971,0.03869147,178.52,178.49,0.03660212]
[1748353252168,0.03869147,178.52,178.51,5.5986]
[1748353257367,40.6563,178.59,178.55,5.5973]
[1748353257572,35.06,178.59,178.49,3.9642]
[1748353258061,40.6562,178.59,178.49,3.9642]
[1748353258261,485.3018,178.63,178.49,3.9642]
[1748353258470,0.03897748,178.56,178.52,0.04045988]
[1748353258869,0.03897748,178.56,178.55,5.5974]
[1748353260466,35.04,178.62,178.58,5.5962]
[1748353260868,35.04,178.62,178.5,62.0]
[1748353261372,40.6353,178.62,178.5,62.0]
[1748353261578,0.04182526,178.58,178.54,0.03933082]
[1748353261784,35.04,178.67,178.55,35.04]
[1748353262271,34.88,178.71,178.55,35.04]
[1748353262474,5.5948,178.64,178.56,34.88]
[1748353262667,19.80580706,178.68,178.5,62.0]
[1748353262873,483.66,178.72,178.49,3.9642]
[1748353262874,0.03708169,178.62,178.58,0.04129103]
[1748353263073,34.88,178.61,178.49,3.9642]
[1748353263269,0.03666218,178.57,178.53,0.03766304]
[1748353264777,0.03666218,178.57,178.55,1.3]
[1748353264978,0.03666218,178.57,178.55,6.8971]
[1748353265281,0.03666218,178.57,178.55,1.3]
[1748353267278,34.88,178.62,178.55,1.3]
[1748353267782,5.5955,178.61,178.57,5.5965]
[1748353268179,34.88,178.62,178.57,5.63916229]
[1748353268375,5.5959,178.6,178.57,0.04266229]
[1748353268985,34.88,178.62,178.57,0.04266229]
[1748353270184,5.5964,178.58,178.57,0.04266229]
[1748353274587,34.88,178.62,178.57,0.04266229]
[1748353275381,5.5964,178.58,178.57,0.04266229]
[1748353276087,34.88,178.62,178.57,0.04266229]
[1748353276394,11.1878,178.67,178.57,5.63916229]
[1748353276586,34.86,178.65,178.57,0.04266229]
[1748353276789,34.86,178.66,178.59,0.04262757]
[1748353276993,34.86,178.66,178.61,0.03682785]
[1748353278284,5.5951,178.63,178.61,0.03682785]
[1748353278485,1.6391,178.7,178.61,0.03682785]
[1748353278684,34.86,178.67,178.61,0.03682785]
[1748353278888,5.5952,178.62,178.61,0.03682785]
[1748353279590,34.86,178.67,178.61,0.03682785]
[1748353280491,5.5952,178.62,178.61,0.03682785]
[1748353281088,47.02726104,178.67,178.55,1.3]
[1748353281279,34.86,178.66,178.55,1.3]
[1748353282097,0.03649571,178.62,178.59,0.03783354]
[1748353282384,5.5955,178.61,178.59,0.03783354]
[1748353282790,0.03649571,178.62,178.59,0.03783354]
[1748353282988,5.5958,178.6,178.59,0.03783354]
[1748353290400,0.03649571,178.62,178.59,0.03783354]
[1748353290603,0.03649571,178.62,178.61,5.5955]
[1748353290794,0.03649571,178.62,178.6,1.9897]
[1748353291401,0.03649571,178.62,178.61,5.5955]
[1748353292402,5.5942,178.66,178.62,5.5951]
[1748353292600,34.86,178.68,178.6,1.9897]
[1748353292898,5.5941,178.66,178.62,5.5949]
[1748353293100,34.86,178.68,178.6,1.9897]
[1748353293502,34.86,178.68,178.62,0.04022018]
[1748353293903,12.16726104,178.75,178.62,0.04022018]
[1748353294202,12.16726104,178.75,178.64,5.5943]
[1748353294500,12.16726104,178.75,178.66,0.04024811]
[1748353294501,518.36,178.72,178.66,0.04024811]
[1748353294697,5.5935,178.68,178.66,0.04024811]
[1748353295298,5.593,178.69,178.66,0.04024811]
[1748353295501,518.36,178.72,178.66,0.04024811]
[1748353295801,5.5926,178.71,178.66,0.04024811]
[1748353296101,5.5926,178.71,178.67,0.04025796]
[1748353296403,34.7,178.75,178.67,0.04025796]
[1748353296404,5.5921,178.72,178.68,5.593]
[1748353296705,34.7,178.75,178.67,0.04025796]
[1748353297298,5.5923,178.72,178.67,0.04025796]
[1748353297803,5.5923,178.72,178.68,5.5931]
[1748353298007,5.5925,178.71,178.68,5.5931]
[1748353298400,34.7,178.75,178.67,0.04025796]
[1748353298602,5.5919,178.73,178.67,0.04025796]
[1748353298805,5.5919,178.73,178.68,0.03911183]
[1748353299303,34.68,178.78,178.7,5.5926]
[1748353299501,34.68,178.78,178.72,0.03924774]
[1748353300001,5.5917,178.73,178.72,0.03924774]
[1748353300207,34.68,178.73,178.65,1.8916]
[1748353300700,34.68,178.73,178.63,0.84815842]
[1748353300902,12.16726104,178.72,178.63,0.84815842]
[1748353301204,5.5945,178.64,178.63,0.84815842]
[1748353301399,34.7195188,178.65,178.62,0.04266366]
[1748353301599,34.71952112,178.65,178.62,0.04266366]
[1748353301811,5.5948,178.63,178.62,0.04266366]
[1748353302700,5.5967,178.58,178.56,3.70798746]
[1748353302902,34.68,178.65,178.56,1.70108746]
[1748353303299,5.597,178.57,178.55,1.3]
[1748353303703,0.03619928,178.58,178.55,1.3]
[1748353304101,5.63289928,178.58,178.55,1.3]
[1748353304308,0.03619928,178.58,178.55,1.3]
[1748353304708,5.5967,178.57,178.55,1.3]
[1748353305603,5.597,178.56,178.55,1.3]
[1748353306817,5.5968,178.57,178.55,1.3]
[1748353307313,0.03619928,178.58,178.55,1.3]
[1748353307514,5.597,178.56,178.55,1.3]
[1748353312110,34.7,178.57,178.46,3.1982689]
[1748353312618,5.5995,178.49,178.46,3.1982689]
[1748353313014,34.7,178.57,178.46,8.7983689]
[1748353313316,5.5983,178.52,178.5,0.04199401]
[1748353313518,0.03598943,178.53,178.5,0.04199401]
[1748353314015,5.5983,178.52,178.5,0.04199401]
[1748353314211,0.03598943,178.53,178.5,0.04199401]
[1748353314805,5.5986,178.51,178.5,0.04199401]
[1748353316215,12.20325047,178.53,178.42,3.8797]
[1748353316519,12.16726104,178.53,178.42,1.9875]
[1748353317020,5.6001,178.47,178.42,7.5887]
[1748353317513,0.04024375,178.46,178.43,0.04144931]
[1748353317718,0.04024375,178.46,178.44,5.6008]
[1748353318320,0.04024375,178.46,178.43,5.64244931]
[1748353318714,0.04024375,178.46,178.43,0.04144931]
[1748353319919,5.6008,178.44,178.43,0.04144931]
[1748353320122,34.72,178.44,178.37,2.0033]
[1748353320316,34.72,178.44,178.35,0.63538813]
[1748353320824,34.72,178.44,178.34,0.63538813]
[1748353321121,0.03990743,178.41,178.37,0.03669378]
[1748353321822,5.6027,178.38,178.37,0.03669378]
[1748353322123,34.54,178.38,178.27,2.0032]
[1748353322815,34.54,178.38,178.28,5.6058]
[1748353323015,0.03853406,178.35,178.31,0.03873852]
[1748353324019,5.604,178.34,178.31,0.03873852]
[1748353324334,34.54,178.33,178.31,0.03873852]
[1748353324518,40.1445,178.33,178.31,0.03873852]
[1748353324714,34.54,178.33,178.31,0.03873852]
[1748353325119,5.6046,178.32,178.31,0.03873852]
[1748353325619,34.54,178.33,178.31,0.03873852]
[1748353325920,34.56,178.32,178.31,0.03873852]
[1748353326318,34.59853406,178.35,178.31,0.03873852]
[1748353326618,34.59853406,178.35,178.31,5.64343852]
[1748353327017,34.59853406,178.35,178.32,5.6044]
[1748353327223,0.03853406,178.35,178.31,0.03873852]
[1748353327622,0.03853406,178.35,178.34,5.6039]
[1748353328126,34.56,178.4,178.32,3.9923]
[1748353328821,34.56,178.4,178.32,1.9504]
[1748353329021,5.6038,178.35,178.32,1.9504]
[1748353329319,0.03887541,178.38,178.32,1.9504]
[1748353329825,0.03887541,178.38,178.31,0.03873852]
[1748353330725,5.6042,178.34,178.31,0.03873852]
[1748353330926,5.64043918,178.34,178.31,0.03873852]
[1748353331123,0.03623918,178.34,178.31,0.03873852]
[1748353331524,34.56,178.39,178.34,5.6037]
[1748353331725,34.56,178.39,178.27,2.0004]
[1748353332523,0.04086171,178.35,178.31,0.04080389]
[1748353332829,5.6042,178.34,178.31,0.04080389]
[1748353333329,0.04086171,178.35,178.31,5.64570389]
[1748353333526,5.64476171,178.35,178.31,5.64570389]
[1748353333730,0.04086171,178.35,178.31,0.04080389]
[1748353333933,5.6042,178.34,178.31,0.04080389]
[1748353334135,0.04086171,178.35,178.31,0.04080389]
[1748353334531,5.6045,178.33,178.31,0.04080389]
[1748353335425,5.6046,178.32,178.31,0.04080389]
[1748353335833,46.74726104,178.34,178.17,35.20938478]
[1748353336131,1.641,178.33,178.18,4.0377]
[1748353336336,36.221,178.33,178.21,1.9874]
[1748353336531,5.6058,178.29,178.24,5.607]
[1748353336731,0.04005894,178.28,178.21,1.9874]
[1748353336937,0.04005894,178.28,178.25,0.04105528]
[1748353337135,5.6061,178.27,178.25,0.04105528]
[1748353337433,34.62005894,178.28,178.25,0.04105528]
[1748353338239,5.6064,178.27,178.25,0.04105528]
[1748353338737,34.62005894,178.28,178.25,0.04105528]
[1748353339334,34.62005894,178.28,178.27,5.6061]
[1748353339638,34.58,178.34,178.25,0.04105528]
[1748353339828,34.58,178.34,178.31,5.6047]
[1748353340143,34.58,178.34,178.22,34.58]
[1748353340637,0.03590496,178.3,178.29,5.6054]
[1748353342734,34.58,178.45,178.29,40.18]
[1748353342940,34.58,178.45,178.29,38.6079]
[1748353343327,34.58,178.45,178.3,62.0]
[1748353343738,0.03656013,178.39,178.36,0.03740277]
[1748353344138,0.03656013,178.39,178.38,5.6024]
[1748353344937,34.58,178.45,178.41,5.6016]
[1748353345137,34.58,178.45,178.34,34.58]
[1748353345441,5.6012,178.43,178.39,5.6024]
[1748353345740,34.58,178.45,178.34,34.58]
[1748353345943,0.03685987,178.41,178.4,5.6018]
[1748353346843,0.03685987,178.41,178.38,0.03940823]
[1748353346844,0.03685987,178.41,178.38,5.64180823]
[1748353347338,0.03685987,178.41,178.38,0.03940823]
[1748353348037,0.03685987,178.41,178.39,5.6022]
[1748353348237,0.03685987,178.41,178.38,0.03940823]
[1748353351449,5.6024,178.39,178.38,0.03940823]
[1748353353640,34.42,178.4,178.38,0.03940823]
[1748353353641,40.0221,178.4,178.38,0.03940823]
[1748353353943,0.03685987,178.41,178.38,0.03940823]
[1748353358050,34.42,178.45,178.38,0.03940823]
[1748353358238,34.4,178.49,178.38,0.03940823]
[1748353358439,5.6004,178.46,178.42,5.6012]
[1748353358642,5.6004,178.46,178.36,0.6368559]
[1748353358849,34.4,178.49,178.36,0.6368559]
[1748353359049,5.6011,178.43,178.41,0.03857064]
[1748353359249,0.04215465,178.44,178.41,0.03857064]
[1748353359548,34.4,178.49,178.41,0.03857064]
[1748353359549,5.5999,178.47,178.41,0.03857064]
[1748353359746,34.4,178.49,178.41,0.03857064]
[1748353360047,34.4,178.49,178.41,3.90307064]
[1748353360249,5.5996,178.48,178.41,3.90307064]
[1748353360650,34.4,178.49,178.41,3.90307064]
[1748353360651,0.02291481,178.46,178.41,3.90307064]
[1748353362352,5.6006,178.45,178.41,9.50467064]
[1748353362651,5.6006,178.45,178.41,3.90307064]
[1748353363054,0.02291481,178.46,178.41,3.90307064]
[1748353363354,0.02291481,178.46,178.41,0.03857064]
[1748353363544,0.02291481,178.46,178.39,0.63767865]
[1748353363545,5.6021,178.4,178.39,0.63767865]
[1748353365649,5.6024,178.39,178.38,0.67491081]
[1748353367552,5.6033,178.36,178.35,1.27406165]
[1748353367948,5.6033,178.36,178.3,2.9061768]
[1748353367949,5.6049,178.31,178.3,0.8495768]
[1748353368155,34.4,178.36,178.3,0.8495768]
[1748353368653,5.6048,178.32,178.31,0.03763265]
[1748353369756,12.16726104,178.34,178.27,1.27965271]
[1748353370157,12.16726104,178.3,178.23,1.70996099]
[1748353370361,34.42,178.29,178.17,3.9056]
[1748353370556,36.2844,178.29,178.17,3.9056]
[1748353370751,5.6071,178.24,178.23,0.03842313]
[1748353372560,34.42,178.25,178.14,2.0088]
[1748353373464,0.03977743,178.21,178.18,0.04204442]
[1748353375266,34.42,178.2,178.05,34.42]
[1748353375460,5.6102,178.15,178.1,5.6114]
[1748353375662,34.42,178.2,178.07,2.0092]
[1748353376054,5.6105,178.14,178.07,2.0092]
[1748353376264,0.03639998,178.12,178.09,0.03948253]
[1748353378165,0.03639998,178.12,177.96,38.68008484]
[1748353378373,118.96,178.13,177.96,38.68008484]
[1748353378764,118.96,178.13,177.92,3.8883]
[1748353378959,12.16726104,178.05,177.93,5.6168]
[1748353379266,0.03906334,178.02,177.98,0.04194387]
[1748353379957,5.615,177.99,177.98,0.04194387]
[1748353380158,34.44,177.99,177.98,0.04194387]
[1748353380570,34.44,177.99,177.9,5.6178]
[1748353380571,40.0553,177.99,177.9,5.6178]
[1748353380767,40.0553,177.99,177.89,1.9943]
[1748353380963,34.44,177.99,177.89,1.9943]
[1748353381174,0.03906334,178.02,177.93,5.6166]
[1748353381374,34.47906334,178.02,177.89,1.9943]
[1748353381570,34.47906334,178.02,177.97,0.03928638]
[1748353382963,5.6153,177.98,177.97,0.03928638]
[1748353383566,5.6159,177.96,177.89,1.8854]
[1748353383876,5.6159,177.96,177.6,29.04856104]
[1748353383877,532.02726104,177.96,177.8,1.8854]
[1748353384066,5.6194,177.86,177.8,1.8854]
[1748353384268,35.08,177.87,177.74,3.9383]
[1748353384473,35.08,177.86,177.74,3.9383]
[1748353384775,0.03855471,177.82,177.78,0.03748267]
[1748353385572,5.6188,177.87,177.78,0.03748267]
[1748353385772,35.08,177.88,177.78,0.03748267]
[1748353386071,35.08,177.88,177.74,39.0183]
[1748353386267,35.08,177.88,177.78,5.6215]
[1748353386469,0.04327872,177.85,177.81,0.03918977]
[1748353387973,35.1,177.92,177.81,0.03918977]
[1748353388176,35.1,177.92,177.79,35.1]
[1748353388575,40.7174,177.92,177.84,5.6194]
[1748353388774,40.7174,177.92,177.79,35.1]
[1748353388775,35.1,177.92,177.79,35.1]
[1748353389070,0.03730747,177.87,177.84,0.04201535]
[1748353391278,0.03730747,177.87,177.86,5.6191]
[1748353391572,35.12,177.94,177.9,5.6177]
[1748353392073,35.12,177.94,177.85,39.0181]
[1748353392572,0.04018444,177.91,177.85,39.0181]
[1748353392779,0.04018444,177.91,177.9,5.6178]
[1748353393677,5.615,177.99,177.88,0.03856106]
[1748353393874,35.12,177.98,177.85,39.0181]
[1748353394079,35.12,177.99,177.85,39.0181]
[1748353394767,0.03987806,177.94,177.93,5.6169]
[1748353394965,0.03968683,177.95,177.92,0.03802003]
[1748353395178,485.32,178.05,177.92,0.03951723]
[1748353395477,35.12,178.04,177.9,35.12]
[1748353395971,40.7334,178.04,177.9,35.12]
[1748353396175,0.03788214,177.99,177.95,0.0391253]
[1748353396576,0.03788214,177.99,177.98,5.6153]
[1748353397076,19.93971541,178.1,177.96,1.9373]
[1748353397077,485.3,178.16,177.96,37.0573]
[1748353397276,55.05971541,178.15,177.96,37.0573]
[1748353397472,35.12,178.15,177.96,37.0573]
[1748353398075,0.04103695,178.07,178.04,0.03591035]
[1748353398268,0.03994032,178.07,178.05,5.6128]
[1748353398473,0.03994032,178.07,178.04,0.03849078]
[1748353399284,0.03994032,178.07,178.04,5.65179078]
[1748353399476,0.03994032,178.07,178.04,0.03849078]
[1748353399978,0.03994032,178.07,178.04,5.65179078]
[1748353400179,0.03994032,178.07,178.04,0.03849078]
[1748353400382,0.03994032,178.07,178.04,5.65179078]
[1748353400576,0.03994032,178.07,178.04,0.03849078]
[1748353401581,0.03994032,178.07,178.04,5.65159078]
[1748353401782,0.03994032,178.07,178.04,0.03849078]
[1748353403279,35.1,178.15,178.04,0.03849078]
[1748353403476,35.1,178.15,178.02,21.97181541]
[1748353403678,35.1,178.19,178.11,5.6109]
[1748353403877,485.244,178.25,178.07,35.1]
[1748353404083,35.1,178.21,178.08,36.9682]
[1748353404382,0.03806745,178.16,178.13,0.03724321]
[1748353406683,0.03806745,178.16,178.02,2.0321]
[1748353406684,35.1,178.15,178.02,2.0321]
[1748353406979,35.1,178.14,178.03,2.0297]
[1748353407193,35.1,178.14,178.05,5.613]
[1748353407383,35.1,178.14,178.03,2.0297]
[1748353407579,0.04094248,178.1,178.09,5.6118]
[1748353407786,0.04086884,178.11,178.08,0.03965347]
[1748353409689,5.6118,178.09,178.08,0.03965347]
[1748353410691,5.6116,178.1,178.08,0.03965347]
[1748353411086,5.6118,178.09,178.08,0.03965347]
[1748353411890,0.04086884,178.11,178.08,0.03965347]
[1748353412485,5.6118,178.09,178.08,0.03965347]
[1748353413193,0.04086884,178.11,178.08,0.03965347]
[1748353413693,5.6118,178.09,178.08,0.03965347]
[1748353415393,40.1118,178.09,178.08,5.347e-05]
[1748353418294,34.5,178.09,178.08,5.347e-05]
[1748353418892,40.1118,178.09,178.08,5.347e-05]
[1748353420300,5.6118,178.09,178.08,5.347e-05]
[1748353422395,0.04086884,178.11,178.08,5.347e-05]
[1748353423096,5.6118,178.09,178.08,5.347e-05]
[1748353423700,0.04086884,178.11,178.08,5.347e-05]
[1748353424201,5.65236884,178.11,178.08,5.61215347]
[1748353424402,0.04086884,178.11,178.08,5.347e-05]
[1748353424705,5.65216884,178.11,178.08,5.347e-05]
[1748353424895,0.04086884,178.11,178.08,5.347e-05]
[1748353425300,0.04086884,178.11,178.09,5.6118]
[1748353425498,0.04086884,178.11,178.08,5.347e-05]
[1748353426700,0.04086884,178.11,178.1,5.6115]
[1748353426903,34.5,178.17,178.08,5.347e-05]
[1748353427101,34.5,178.17,178.11,5.611]
[1748353427304,34.5,178.17,178.09,2.0417]
[1748353427906,0.03569702,178.15,178.11,0.04079671]
[1748353428597,34.5,178.21,178.12,34.5]
[1748353428798,34.5,178.21,178.13,2.0539]
[1748353428997,519.66,178.25,178.13,2.0539]
[1748353429204,519.66,178.25,178.17,5.6091]
[1748353429405,485.16,178.25,178.13,2.0539]
[1748353429601,0.03598163,178.21,178.17,0.03975471]
[1748353430004,34.5,178.29,178.17,34.53975471]
[1748353430207,34.5,178.29,178.17,34.5]
[1748353430406,34.5,178.29,178.21,5.6078]
[1748353430806,34.5,178.29,178.17,34.5]
[1748353431007,0.02841893,178.27,178.23,0.03623188]
[1748353431705,0.02841893,178.27,178.25,5.6065]
[1748353431907,34.5,178.33,178.24,2.0433]
[1748353432406,0.5031,178.41,178.24,2.0433]
[1748353432604,34.48,178.37,178.24,2.0433]
[1748353432799,34.48,178.37,178.28,5.6058]
[1748353433006,34.48,178.37,178.31,0.04013611]
[1748353434612,5.6046,178.32,178.31,0.04013611]
[1748353437410,5.6068,178.25,178.24,2.0433]
[1748353437607,34.48,178.32,178.2,2.0276]
[1748353438514,0.03934734,178.28,178.24,0.04037242]
[1748353438812,5.6067,178.26,178.24,0.04037242]
[1748353439007,0.03934734,178.28,178.24,0.04037242]
[1748353439207,5.6064,178.27,178.24,0.04037242]
[1748353439411,0.03934734,178.28,178.24,0.04037242]
[1748353439813,0.03934734,178.28,178.24,5.64717242]
[1748353440212,0.03934734,178.28,178.24,0.04037242]
[1748353440816,0.03934734,178.28,178.26,5.6063]
[1748353441118,0.03934734,178.28,178.24,0.04037242]
[1748353441812,34.46,178.4,178.25,34.46]
[1748353442008,34.46,178.4,178.26,1.9918]
[1748353442414,34.46,178.4,178.26,14.22434506]
[1748353442616,40.0623,178.4,178.36,5.6033]
[1748353442922,34.46,178.4,178.36,0.03787033]
[1748353444012,34.34,178.45,178.36,0.03787033]